Cogmind - Beta 13 *** ADVENTURER MODE // 2024.05.27 @ 15:06:06 // Winter2019/RPGLIKE Player: Timeslice Result: Destroyed by S-43 Plague with Heavy Machine Gun Performance ------------- Evolutions (9) 4500 Regions Visited (21) 4200 Robots Destroyed (478) 2390 Value Destroyed (24963) 24963 Prototype IDs (22) 440 Alien Tech Used (3) 600 Bonus (8878) 8878 TOTAL SCORE: 45971 Bonus ------- High Alert Combat Kills 3438 Follower Combat Kills 1128 Entered Garrisons 400 Used RIF Installer 1000 Entered DSFs 500 Network Hubs Disabled 200 Met R17 at Cetus 500 Met Sigix 2000 Friendly Fire -288 Cogmind --------- Core Integrity 0/1100 Matter 350/350 Energy 40/420 System Corruption 7% Temperature Cool (-200) Movement Rolling (115) Ox1 Location -1/Access Parts ------- > --- POWER (4) -------- Micro Antimatter Reactor Light Quantum Reactor Light Quantum Reactor Light Quantum Reactor > --- PROPULSION (6) --- Armored Huge Wheel Armored Huge Wheel Armored Huge Wheel > --- UTILITY (12) ----- Advanced Cryofiber Web Advanced Trap Scanner (fused) Advanced Signal Interpreter Improved Terrain Scanner Advanced Targeting Computer Transmission Jammer Improved Phase Shifter Makeshift Cloaking Device Centrium Medium Armor Plating Advanced Force Field Hacking Suite Long-range Tractor Beam > --- WEAPON (4) ------- Enhanced Quantum Rifle Enhanced Nova Cannon Light Antimatter Cannon Linear Accelerator > --- INVENTORY (6) ---- Protomatter-61 Improved Grenade Launcher Sigix Containment Pod Peak State ------------ > --- POWER ------------ Micro Antimatter Reactor Light Quantum Reactor Light Quantum Reactor Light Quantum Reactor > --- PROPULSION ------- Armored Huge Wheel Armored Huge Wheel Armored Huge Wheel > --- UTILITY ---------- Advanced Cryofiber Web Advanced Trap Scanner Advanced Signal Interpreter Improved Terrain Scanner Advanced Targeting Computer Transmission Jammer Improved Phase Shifter Makeshift Cloaking Device Centrium Medium Armor Plating Advanced Force Field Hacking Suite Long-range Tractor Beam > --- WEAPON ----------- Enhanced Quantum Rifle Enhanced Nova Cannon Light Antimatter Cannon Linear Accelerator > --- INVENTORY -------- Protomatter KE Penetrator Improved Grenade Launcher Sigix Containment Pod [Rating: 160] Favorites ----------- Power Light Quantum Reactor Engine Improved Ion Engine Power Core Neutrino Core Reactor Light Quantum Reactor Propulsion Armored Huge Wheel Wheel Armored Huge Wheel Utility Improved Terrain Scanner Device Improved Terrain Scanner Processor Advanced Targeting Computer Hackware Hacking Suite Protection Centrium Medium Armor Plating Weapon Cooled Plasma Cannon Energy Gun Enhanced Quantum Rifle Energy Cannon Cooled Plasma Cannon Ballistic Gun Advanced KE Penetrator Ballistic Cannon Light Antimatter Cannon Launcher Improved Grenade Launcher Impact Weapon Powered Hammer Slashing Weapon Axe Build | -11 -10 -10 -9 -8 -7 -7 -7 -5 -5 -5 -5 -5 -4 -4 -4 -4 -3 -3 -2 -2 -1 ------- Run | Yrd Mat Min Mat Mat Fac Sto Rec Fac Ext Cet Arc Hub Fac Gar Fac Gar Res Qua Res DSF Acc Slots Evolved 22 | 3 . 2 3 . 2 1 2 1 2 2 . . 1 . . 1 . 1 . . 1 Power 3 | . . . . . . 1 . 1 . . . . . . . . . 1 . . . Propulsion 5 | 1 . 1 . . 1 . . . . 2 . . . . . . . . . . . Utility 11 | 1 . 1 3 . 1 . 1 . 1 . . . 1 . . 1 . . . . 1 Weapon 3 | 1 . . . . . . 1 . 1 . . . . . . . . . . . . Parts Attached 201 | 7 2 4 8 14 11 15 2 6 11 14 2 3 33 6 4 4 22 27 3 . 3 Power 28 | 1 . 1 . 1 . 5 . 2 4 2 1 . 6 1 . . . 3 . . 1 Engine 8 | 1 . 1 . . . 4 . 2 . . . . . . . . . . . . . Core 6 | . . . . 1 . 1 . . 4 . . . . . . . . . . . . Reactor 14 | . . . . . . . . . . 2 1 . 6 1 . . . 3 . . 1 Propulsion 16 | 2 . . 3 1 4 . . . . 2 . 2 2 . . . . . . . . Treads . | . . . . . . . . . . . . . . . . . . . . . . Leg . | . . . . . . . . . . . . . . . . . . . . . . Wheel 16 | 2 . . 3 1 4 . . . . 2 . 2 2 . . . . . . . . Hover . | . . . . . . . . . . . . . . . . . . . . . . Flight . | . . . . . . . . . . . . . . . . . . . . . . Utility 99 | 2 1 1 4 3 3 2 1 3 3 1 . 1 22 3 4 4 19 18 2 . 2 Device 68 | 2 . . 2 2 1 . 1 2 3 . . . 15 2 4 4 15 13 1 . 1 Storage . | . . . . . . . . . . . . . . . . . . . . . . Processor 5 | . 1 . . 1 1 1 . . . . . . 1 . . . . . . . . Hackware 1 | . . . 1 . . . . . . . . . . . . . . . . . . Protection 25 | . . 1 1 . 1 1 . 1 . 1 . 1 6 1 . . 4 5 1 . 1 Artifact . | . . . . . . . . . . . . . . . . . . . . . . Weapon 58 | 2 1 2 1 9 4 8 1 1 4 9 1 . 3 2 . . 3 6 1 . . Energy Gun 11 | . 1 1 . 1 . 1 . . 1 1 1 . 1 2 . . . 1 . . . Energy Cannon 6 | . . . . . . 1 . . 1 . . . 1 . . . 1 1 1 . . Ballistic Gun 21 | 2 . 1 1 4 3 3 1 1 . 5 . . . . . . . . . . . Ballistic Cannon 7 | . . . . . . . . . 1 . . . 1 . . . 2 3 . . . Launcher 5 | . . . . . . . . . 1 3 . . . . . . . 1 . . . Special Weapon . | . . . . . . . . . . . . . . . . . . . . . . Impact Weapon 2 | . . . . . . 2 . . . . . . . . . . . . . . . Slashing Weapon 6 | . . . . 4 1 1 . . . . . . . . . . . . . . . Piercing Weapon . | . . . . . . . . . . . . . . . . . . . . . . Special Melee Weapon . | . . . . . . . . . . . . . . . . . . . . . . Unidentified Prototypes 12 | . . . . . 1 1 . . . 3 . . 2 . . . 2 3 . . . Parts Lost . | . . . . . . . . . . . . . . . . . . . . . . Power . | . . . . . . . . . . . . . . . . . . . . . . Propulsion . | . . . . . . . . . . . . . . . . . . . . . . Utility . | . . . . . . . . . . . . . . . . . . . . . . Weapon . | . . . . . . . . . . . . . . . . . . . . . . Highest Loss Streak . | . . . . . . . . . . . . . . . . . . . . . . To Critical Strikes . | . . . . . . . . . . . . . . . . . . . . . . Average Slot Usage (%) 89 | . 100 88 94 100 96 85 84 87 88 85 90 90 86 85 86 86 87 86 88 88 87 Engine 3 | . 14 12 9 7 . 7 11 15 1 . . . . . . . . . . . . Core 1 | . . . . . 7 3 . . 13 8 1 . . . . . . . . . . Reactor 7 | . . . . . . . . . . 4 11 13 13 12 13 12 12 12 16 16 15 Wheel 15 | . 28 25 24 25 24 13 11 11 10 9 18 18 14 13 13 12 12 12 12 12 11 Device 23 | . 16 12 12 25 21 20 23 22 24 23 22 22 25 25 26 26 29 28 28 28 29 Processor 9 | . 11 12 9 8 14 13 11 11 10 9 9 9 8 8 8 8 8 8 8 8 7 Hackware 4 | . . . 8 8 7 6 5 5 5 4 4 4 4 4 4 4 4 4 4 4 3 Protection 4 | . . . 9 8 7 6 5 4 5 4 4 4 3 3 4 4 3 3 4 4 3 Energy Gun 4 | . 7 12 9 8 7 . . . 1 4 4 4 4 3 4 4 4 4 4 4 3 Energy Cannon 3 | . . . . . . 5 5 5 2 4 4 4 4 4 4 4 4 3 4 4 3 Ballistic Gun 6 | . 20 12 9 7 6 5 7 11 9 8 9 9 7 4 4 4 . . . . . Ballistic Cannon 2 | . . . . . . . . . . . . . . 4 4 4 7 7 8 8 7 Naked Turns . | . . . . . . . . . . . . . . . . . . . . . . Heaviest Build 121 | 10 10 17 19 20 20 47 52 62 87 97 102 102 103 97 97 98 109 119 120 120 121 Greatest Support 99 | 20 20 20 32 34 56 56 56 61 61 93 93 93 94 94 94 94 99 99 99 99 99 Greatest Overweight (x) 6 | 1 . . . . 6 . . 1 1 1 1 1 1 1 1 1 1 1 1 1 1 Average Overweight (x) . | . . . . . . . . . 1 1 1 1 . . 1 1 . . 1 1 1 Largest Inventory Capacity 6 | 3 3 4 5 5 5 5 5 5 5 5 5 5 5 5 5 5 5 6 6 6 6 Average Capacity 4 | 3 3 3 4 5 5 5 5 5 5 5 5 5 5 5 5 5 5 5 6 6 6 Most Carried 6 | 3 3 4 5 5 5 5 5 5 5 5 5 5 5 5 5 5 5 6 6 5 6 Average Carried 4 | 2 2 3 3 4 4 4 4 4 4 4 5 4 4 4 5 4 4 4 4 4 3 Final Capacity 6 | 3 3 4 5 5 5 5 5 5 5 5 5 5 5 5 5 5 5 6 6 6 6 Final Carried 6 | 3 3 4 5 5 5 5 5 5 5 5 5 5 5 5 5 4 5 6 5 4 4 Class Distribution -------------------- 46% | Hacker-Gunner 24% | Hacker-Skirmisher 15% | Scavenger-Gunner 3% | Scavenger-Skirmisher 3% | Commander-Gunner Dominant Class ---------------- Mutant | -10/Materials Hacker-Skirmisher | -10/Mines Hacker-Skirmisher | -9/Materials Hacker-Skirmisher | -8/Materials Hacker-Skirmisher | -7/Factory Hacker-Skirmisher | -7/Storage Hacker-Skirmisher | -7/Recycling Commander-Gunner | -5/Factory Hacker-Gunner | -5/Extension Scavenger-Gunner | -5/Cetus Scavenger-Gunner | -5/Archives Scavenger-Gunner | -5/Hub_04(d) Scavenger-Gunner | -4/Factory Hacker-Gunner | -4/Garrison Hacker-Gunner | -4/Factory Hacker-Gunner | -4/Garrison Hacker-Gunner | -3/Research Hacker-Gunner | -3/Quarantine Hacker-Gunner | -2/Research Hacker-Gunner | -2/DSF Hacker-Gunner | -1/Access Resources | -11 -10 -10 -9 -8 -7 -7 -7 -5 -5 -5 -5 -5 -4 -4 -4 -4 -3 -3 -2 -2 -1 ----------- Run | Yrd Mat Min Mat Mat Fac Sto Rec Fac Ext Cet Arc Hub Fac Gar Fac Gar Res Qua Res DSF Acc Matter Collected 10694 | 310 170 97 268 465 179 367 52 117 1096 693 92 110 1157 940 317 446 1904 1179 . 105 630 Remotely 1848 | . . . . . . . . . . . . . . . . . 565 743 . . 540 Salvage Created 18500 | 103 268 359 1109 737 50 523 71 422 1288 1327 508 302 2636 1748 1222 389 2788 1120 . 388 1142 Parts 981 | 6 33 30 87 54 20 32 7 14 52 55 12 24 135 67 61 16 152 49 . 10 65 Haulers Intercepted 3 | . . . . . . . . . . . . . . 1 . . 2 . . . . Recyclers Shooed 10 | 1 1 2 . . . . . 1 2 . . . . . . . 2 . . . 1 Parts Field Recycled . | . . . . . . . . . . . . . . . . . . . . . . Retrieved Matter . | . . . . . . . . . . . . . . . . . . . . . . Parts Self-Destructed . | . . . . . . . . . . . . . . . . . . . . . . Prevented . | . . . . . . . . . . . . . . . . . . . . . . Kills | -11 -10 -10 -9 -8 -7 -7 -7 -5 -5 -5 -5 -5 -4 -4 -4 -4 -3 -3 -2 -2 -1 ------- Run | Yrd Mat Min Mat Mat Fac Sto Rec Fac Ext Cet Arc Hub Fac Gar Fac Gar Res Qua Res DSF Acc Combat Hostiles Destroyed 358 | . 12 9 25 20 8 15 4 2 24 27 4 4 40 36 18 11 51 27 . 4 17 Guns 176 | . 12 9 24 20 8 5 2 1 14 13 2 2 22 13 8 4 12 2 . . 3 Cannons 158 | . . . . . . 10 2 1 2 9 2 1 15 23 9 7 37 22 . 4 14 AOE 12 | . . . . . . . . . 8 4 . . . . . . . . . . . Classes Destroyed 20 | 2 4 1 2 3 1 . 1 . 1 . . . 1 2 . . 1 . . 1 . Worker 26 | . 1 . 1 3 . . . . 2 . . . 5 . . . 12 . . . 2 Builder 24 | . . . 2 . 1 1 . 1 2 . . 5 3 . 1 . 6 1 . . 1 Tunneler 6 | 2 . 1 1 . . . . . 2 . . . . . . . . . . . . Hauler 3 | . . . . . . . . . . . . . . 1 . . 2 . . . . Recycler 8 | 1 . . . . . . . 2 4 . . . . . . . 1 . . . . Mechanic 1 | . . . . . . . . . . . . . 1 . . . . . . . . Operator 7 | . . . 1 1 . . . 1 1 . . . 1 . . . . 2 . . . Watcher 45 | . 2 . 5 5 . 2 . . 3 2 . 1 4 1 4 . 6 3 . . 7 Swarmer 57 | . 6 3 8 4 6 4 . . 10 4 . . . . 1 3 7 . . . 1 Saboteur 1 | . . . . . . . . . . . . . . 1 . . . . . . . Grunt 128 | . 6 4 9 6 1 3 1 1 8 12 . 4 20 18 6 6 9 12 . . 2 Brawler 6 | . . . . 2 . 1 . . 1 . . . . 1 . . 1 . . . . Duelist 9 | . . . . 1 . . . . . . . . . 7 . . 1 . . . . Protector 3 | . . . . . . . 1 . . . . . . . . . 1 1 . . . Sentry 42 | . . 2 8 6 . 6 2 . 4 . 4 . 4 . 3 . 3 . . . . Specialist 2 | . . . . . . . . . . . . . . . . . . . . 2 . Hunter 32 | . . . . 1 . . . 1 . 3 . . 4 6 2 1 8 2 . . 4 Programmer 60 | . . . . . 1 1 . . . . . . 12 2 6 . 19 9 . 1 9 Heavy 3 | . . . . . . . . . . . . . . . . . 1 . . 1 1 Behemoth 4 | . . . . . . . . . 1 . . . . 1 . 1 1 . . . . Cetus Guard 8 | . . . . . . . . . . 8 . . . . . . . . . . . Lightning 3 | . . . . . . . . . . . . . . . . . . 3 . . . Best Kill Streak 16 | 3 6 3 11 5 6 6 2 5 11 5 4 6 6 16 5 6 13 7 . 3 6 Combat Bots Only 15 | . 5 3 9 5 3 6 2 2 9 5 4 2 6 15 3 6 7 7 . 3 4 Max Kills in Single Turn 5 | 1 1 1 2 2 1 1 1 2 5 2 1 2 4 2 1 1 4 2 . 1 2 Gunslinging 1 | . . . . . . . . . 1 . . . . . . . . . . . . Exploded 4 | . . . . . . . . . 4 2 . . . . . . . . . . . Melee . | . . . . . . . . . . . . . . . . . . . . . . Uniques/NPCs Destroyed . | . . . . . . . . . . . . . . . . . . . . . . Combat | -11 -10 -10 -9 -8 -7 -7 -7 -5 -5 -5 -5 -5 -4 -4 -4 -4 -3 -3 -2 -2 -1 -------- Run | Yrd Mat Min Mat Mat Fac Sto Rec Fac Ext Cet Arc Hub Fac Gar Fac Gar Res Qua Res DSF Acc Hostile Shots Fired 2155 | . 63 33 74 79 32 161 27 4 114 146 12 15 271 185 39 105 314 179 . 32 270 Missed 837 | . 19 9 21 20 8 72 9 . 44 50 6 3 91 80 14 44 134 73 . 23 117 Damage Taken 12008 | . 342 247 502 633 268 536 65 30 762 808 92 184 1772 651 174 510 1549 1020 . 134 1729 Core 8577 | . 270 201 358 445 190 350 43 22 544 543 62 149 1242 458 114 411 1111 726 . 108 1230 Absorbed by Shields 6558 | . . . . . . . 32 26 277 559 24 28 732 677 181 404 1493 997 . 142 986 Redirected to Core 7312 | . 211 138 256 378 161 287 38 22 461 476 48 132 1077 401 85 297 1011 638 . 75 1120 Ignored by Resistances 7696 | . 106 72 146 229 99 233 43 20 492 642 54 77 1137 569 154 432 1265 670 . 127 1129 Regen/Repaired (Parts) 369 | . . . . . . . . . 4 . . . 338 . . . 27 . . . . Core Remaining (%) 90 | 100 . 94 93 97 . . 100 . . . . 86 . . . 80 . 75 . 90 . Volleys Fired 954 | 10 39 19 67 78 19 57 9 8 78 69 9 12 100 80 30 35 130 62 . 5 38 Largest 4 | 2 2 2 2 2 2 2 3 3 4 4 4 4 4 4 4 4 4 4 . 4 4 Hottest 311 | 40 60 79 79 84 84 108 91 91 177 187 185 199 218 218 195 195 226 226 . 311 311 Shots Fired 2852 | 20 78 38 134 152 38 94 19 24 185 200 30 44 371 299 118 133 488 229 . 20 138 Gun 1624 | 20 78 38 134 152 38 47 10 16 145 127 24 32 263 147 58 65 137 55 . 5 33 Cannon 1196 | . . . . . . 47 9 8 14 67 6 12 108 152 60 68 351 174 . 15 105 Launcher 32 | . . . . . . . . . 26 6 . . . . . . . . . . . Special . | . . . . . . . . . . . . . . . . . . . . . . Kinetic 1554 | 20 72 19 67 78 19 40 10 16 138 109 18 20 197 160 60 68 243 114 . 10 76 Thermal 1266 | . 6 19 67 74 19 54 9 8 21 85 12 24 174 139 58 65 245 115 . 10 62 Explosive 32 | . . . . . . . . . 26 6 . . . . . . . . . . . Electromagnetic . | . . . . . . . . . . . . . . . . . . . . . . Robot Hit Streak 79 | 12 10 17 17 17 23 54 13 31 41 41 39 44 70 79 25 21 32 52 . 16 24 Robot Miss Streak 5 | 1 3 2 3 3 3 1 1 1 5 2 . 1 1 2 2 1 1 1 . 1 1 Penetration Max 1 | . . . . 1 1 . . . 1 1 1 1 1 1 . 1 1 . . . . Secondary Targets 14 | . 5 . 2 4 . . . . 2 1 . . . . . . . . . . . Max Gunslinging Chain 1 | . 1 . 1 1 . . . . 1 1 . . . . . . . . . . . Shots Hit Robots 2051 | 14 52 32 94 115 31 65 15 18 145 139 26 26 263 209 80 89 360 165 . 16 97 Core Hits 984 | 6 26 14 44 50 14 31 8 16 170 61 9 15 106 93 39 24 140 63 . 8 47 Critical Kills 36 | . 1 . . 1 . . . . 2 9 2 2 6 4 4 1 2 2 . . . Critical Parts Destroyed 41 | 1 . . . . 1 . 1 . 1 13 1 . 12 4 2 4 1 . . . . Critical Strikes 136 | 1 1 . 6 10 3 . 1 . 4 24 5 2 18 11 7 7 24 10 . 1 1 Burn 20 | . . . 6 9 2 . . . 1 1 . . . 1 . . . . . . . Meltdown 7 | . . . . . . . . . . 1 . 1 1 . 1 . 1 2 . . . Destroy 74 | 1 1 . . 1 1 . 1 . 3 22 5 1 17 9 5 5 2 . . . . Blast 35 | . . . . . . . . . . . . . . 1 1 2 21 8 . 1 1 Melee Attacks 8 | . . . . 4 2 2 . . . . . . . . . . . . . . . Impact . | . . . . . . . . . . . . . . . . . . . . . . Slashing 8 | . . . . 4 2 2 . . . . . . . . . . . . . . . Piercing . | . . . . . . . . . . . . . . . . . . . . . . Sneak Attacks . | . . . . . . . . . . . . . . . . . . . . . . Combat Hostiles . | . . . . . . . . . . . . . . . . . . . . . . Follow-up Attacks . | . . . . . . . . . . . . . . . . . . . . . . Damage Inflicted 68980 | 136 557 429 1475 2118 596 1739 384 506 6173 4690 777 1093 8810 7247 2626 3041 14756 6572 . 650 4605 Guns 32675 | 136 557 429 1468 2118 596 615 131 254 3649 2484 613 605 5819 3559 1303 1395 4149 1647 . 144 1004 Cannons 32732 | . . . . . . 1124 253 252 345 1501 164 310 2991 3688 1323 1646 10607 4925 . 506 3097 Explosions 3558 | . . . . . . . . . 2171 705 . 178 . . . . . . . . 504 Melee . | . . . . . . . . . . . . . . . . . . . . . . Ramming 15 | . . . 7 . . . . . 8 . . . . . . . . . . . . Kinetic 33713 | 136 523 219 724 1236 349 492 131 254 3522 2152 448 362 4314 3651 1006 1359 7541 3155 . 258 1881 Thermal 31694 | . 34 210 744 882 247 1247 253 252 472 1833 329 553 4496 3596 1620 1682 7215 3417 . 392 2220 Explosive 2876 | . . . . . . . . . 2171 705 . . . . . . . . . . . Electromagnetic 682 | . . . . . . . . . . . . 178 . . . . . . . . 504 Impact . | . . . . . . . . . . . . . . . . . . . . . . Slashing . | . . . . . . . . . . . . . . . . . . . . . . Piercing . | . . . . . . . . . . . . . . . . . . . . . . Highest Corruption 7 | . . . . . . . . 1 . . . 1 3 . . . 5 3 . . 7 Average Corruption 2 | . . . . . . . . 1 . . . 1 2 . . . 2 1 . . 3 Corruption Purged 22 | . . . . . . . . 1 . . . . 3 . . . 9 9 . . . Corruption Blocked 15 | . . . . . . . . . . . . . . . . . . 15 . . . Effects 32 | . . . . . . . . 1 . . . . 3 . . . 12 4 . . 12 Message Errors 8 | . . . . . . . . . . . . . 2 . . . 2 2 . . 2 Matter Fused 7 | . . . . . . . . 1 . . . . . . . . 1 1 . . 4 Heat Flow Errors 3 | . . . . . . . . . . . . . 1 . . . . . . . 2 Energy Discharges 3 | . . . . . . . . . . . . . . . . . 1 1 . . 1 Parts Rejected 2 | . . . . . . . . . . . . . . . . . 1 . . . 1 Parts Fused 1 | . . . . . . . . . . . . . . . . . . . . . 1 Data Loss (minor) 2 | . . . . . . . . . . . . . . . . . 2 . . . . Misfires 1 | . . . . . . . . . . . . . . . . . . . . . 1 Alerts 2 | . . . . . . . . . . . . . . . . . 2 . . . . Weapon Failures 3 | . . . . . . . . . . . . . . . . . 3 . . . . Overload Shots 3 | . . . . . . 3 . . . . . . . . . . . . . . . Overflow Damage 1093 | . . . . . . 2 12 18 91 47 . 27 46 62 38 . 369 226 . . 155 Projectiles 915 | . . . . . . 2 12 18 8 . . 27 46 62 38 . 369 226 . . 107 Explosions 178 | . . . . . . . . . 83 47 . . . . . . . . . . 48 Melee . | . . . . . . . . . . . . . . . . . . . . . . Knockbacks 103 | . . . . . . . . . . . . . 4 9 1 3 50 21 . . 15 Impact . | . . . . . . . . . . . . . . . . . . . . . . Kinetic 95 | . . . . . . . . . . . . . 4 8 1 3 49 18 . . 12 Secondary 8 | . . . . . . . . . . . . . . 1 . . 1 3 . . 3 Self-Inflicted Damage 158 | . . . 3 . . . . . 51 . . 76 . . . . . . . . 28 Shots 8 | . . . . . . . . . 5 . . 1 . . . . . . . . 2 Rammed 2 | . . . 1 . . . . . 1 . . . . . . . . . . . . Targets Rammed 2 | . . . 1 . . . . . 1 . . . . . . . . . . . . Kicked . | . . . . . . . . . . . . . . . . . . . . . . Crushed . | . . . . . . . . . . . . . . . . . . . . . . Highest Temperature 469 | . 26 90 120 19 . 20 . . 34 157 96 102 398 27 . . . 103 . . 469 Average Temperature 51 | . 12 39 29 4 . 10 . . 19 51 48 36 75 9 . . . 40 . . 144 Received Heat Transfer 2651 | . 156 105 216 324 45 222 27 26 207 113 21 34 528 104 48 74 201 121 . . 79 Effects 2 | . . . . . . . . . . . . . 2 . . . . . . . . Shutdowns 1 | . . . . . . . . . . . . . 1 . . . . . . . . Energy Bleed 1 | . . . . . . . . . . . . . 1 . . . . . . . . Siege Activations . | . . . . . . . . . . . . . . . . . . . . . . Robots Corrupted . | . . . . . . . . . . . . . . . . . . . . . . Combat Hostiles . | . . . . . . . . . . . . . . . . . . . . . . Parts Fried 1 | . . . . . . . . . . . . . . . . . . . . . 1 Impact Corruptions . | . . . . . . . . . . . . . . . . . . . . . . Robots Melted 12 | . . . 1 . . . . . . 1 . 1 3 . 1 . 2 3 . . . Combat Hostiles 12 | . . . 1 . . . . . . 1 . 1 3 . 1 . 2 3 . . . Parts Melted 84 | . . . 8 7 1 6 1 2 . 2 . 2 15 10 5 2 13 9 . . 1 Heat Transferred 43838 | . 75 496 2294 2886 740 1973 327 400 759 2738 435 746 6163 5077 2001 2151 8442 3878 . 333 1924 Parts Sabotaged 3 | . . . . . . . . . . . . . . 3 . . . . . . . Parts Stolen . | . . . . . . . . . . . . . . . . . . . . . . Parts Stripped . | . . . . . . . . . . . . . . . . . . . . . . Power Chain Reactions . | . . . . . . . . . . . . . . . . . . . . . . Alert | -11 -10 -10 -9 -8 -7 -7 -7 -5 -5 -5 -5 -5 -4 -4 -4 -4 -3 -3 -2 -2 -1 ------- Run | Yrd Mat Min Mat Mat Fac Sto Rec Fac Ext Cet Arc Hub Fac Gar Fac Gar Res Qua Res DSF Acc Peak Influence 1428 | 15 357 203 656 478 220 215 136 254 484 375 225 562 927 1428 1013 789 1136 542 193 264 567 Initial 649 | . 8 13 1 163 23 85 28 10 22 8 98 65 237 216 649 245 386 462 193 128 138 Average 324 | 4 169 71 245 231 100 72 55 168 229 134 209 145 475 846 505 556 629 287 193 197 290 Maximum Alert Level 4 | . 1 1 2 2 1 1 . 1 2 1 1 2 3 4 3 3 4 2 . 1 2 Low Security (%) 39 | 100 74 88 35 53 78 99 100 36 39 71 17 91 . . 29 . . 32 100 46 21 Level 1 29 | . 25 11 52 34 21 . . 63 42 28 82 . 37 10 25 33 6 47 . 53 67 Level 2 19 | . . . 12 11 . . . . 17 . . 8 43 29 3 24 64 20 . . 11 Level 3 9 | . . . . . . . . . . . . . 18 21 42 42 27 . . . . Level 4 1 | . . . . . . . . . . . . . . 37 . . 1 . . . . Level 5 . | . . . . . . . . . . . . . . . . . . . . . . High Security . | . . . . . . . . . . . . . . . . . . . . . . Max Security . | . . . . . . . . . . . . . . . . . . . . . . Squads Dispatched 66 | . 1 . 5 3 2 4 . 4 2 1 . 2 14 . 6 . 10 6 . 1 5 Investigation 20 | . 1 . 1 . 1 2 . 4 2 1 . . 4 . 1 . 1 2 . . . Extermination 21 | . . . . . 1 1 . . . . . . 6 . 2 . 6 4 . . 1 Reinforcement 15 | . . . 4 2 . . . . . . . 1 2 . . . 1 . . 1 4 Assault 4 | . . . . . . . . . . . . 1 1 . . . 2 . . . . Garrison 6 | . . . . 1 . 1 . . . . . . 1 . 3 . . . . . . Intercept . | . . . . . . . . . . . . . . . . . . . . . . Searches Triggered . | . . . . . . . . . . . . . . . . . . . . . . Construction Impeded . | . . . . . . . . . . . . . . . . . . . . . . Haulers Reinforced 5 | . . . . . . . . . . . . . 2 . . . 1 . . . 2 Active Scanning Responses . | . . . . . . . . . . . . . . . . . . . . . . Cargo Convoy Interrupts . | . . . . . . . . . . . . . . . . . . . . . . Stealth | -11 -10 -10 -9 -8 -7 -7 -7 -5 -5 -5 -5 -5 -4 -4 -4 -4 -3 -3 -2 -2 -1 --------- Run | Yrd Mat Min Mat Mat Fac Sto Rec Fac Ext Cet Arc Hub Fac Gar Fac Gar Res Qua Res DSF Acc Distress Signals 12 | . . . 3 3 . . . . . 2 . . 1 . . . . . . . 3 Communications Jammed 86 | . . . . . . . 10 . 17 . 1 . 7 . 4 . 26 18 . 1 2 Distress Signals 81 | . . . . . . . 10 . 17 . 1 . 7 . 4 . 22 18 . . 2 Times Spotted 498 | . 16 9 38 30 9 19 4 4 43 32 4 10 56 43 21 24 61 34 . 5 36 Peak Tracking Total 13 | . 4 3 7 5 3 6 1 1 10 5 1 7 8 13 3 7 6 5 . 3 13 Tactical Retreats 21 | . . . 3 3 2 . . . . . . 1 2 3 . 4 1 . . 1 1 Traps | -11 -10 -10 -9 -8 -7 -7 -7 -5 -5 -5 -5 -5 -4 -4 -4 -4 -3 -3 -2 -2 -1 ------- Run | Yrd Mat Min Mat Mat Fac Sto Rec Fac Ext Cet Arc Hub Fac Gar Fac Gar Res Qua Res DSF Acc Traps Triggered 16 | . 1 . 1 . 1 1 . . 1 . . 1 . 4 . . 2 3 . 1 . Indirectly . | . . . . . . . . . . . . . . . . . . . . . . Trap Hack Attempts . | . . . . . . . . . . . . . . . . . . . . . . Triggered . | . . . . . . . . . . . . . . . . . . . . . . Disarmed . | . . . . . . . . . . . . . . . . . . . . . . Reprogrammed 12 | . 6 . . . . . . . . . . . . . . . . 6 . . . Reused 3 | . 2 . . . . . . . . . . . . . . . . 1 . . . Traps Extracted . | . . . . . . . . . . . . . . . . . . . . . . Installed . | . . . . . . . . . . . . . . . . . . . . . . Triggered 4 | . 2 . . . . . . . . . . . 1 . . . . 1 . . . Machines | -11 -10 -10 -9 -8 -7 -7 -7 -5 -5 -5 -5 -5 -4 -4 -4 -4 -3 -3 -2 -2 -1 ---------- Run | Yrd Mat Min Mat Mat Fac Sto Rec Fac Ext Cet Arc Hub Fac Gar Fac Gar Res Qua Res DSF Acc Machines Disabled 79 | . . . 2 . . 4 . 3 3 6 1 12 15 7 13 1 1 5 . . 6 Max in Single Turn 9 | . . . . . . 1 . . 2 2 1 9 9 2 6 1 1 1 . . 2 Garrison Access 4 | . . . . 1 . 1 . . . . . . . . . . 1 . . . 1 Garrison Relay 4 | . . . . . . . . . . . . . . 3 . 1 . . . . . Phase Generator 1 | . . . . . . . . . . . . . . 1 . . . . . . . Network Hub 1 | . . . . . . . . . . . . 1 . . . . . . . . . Energy Cycler 1 | . . . . . . . . . . . . . . . . . . . . . 1 Machines Repaired . | . . . . . . . . . . . . . . . . . . . . . . Machines Dismantled . | . . . . . . . . . . . . . . . . . . . . . . Machines Sabotaged . | . . . . . . . . . . . . . . . . . . . . . . Overloaded Fab Kills . | . . . . . . . . . . . . . . . . . . . . . . Hacking | -11 -10 -10 -9 -8 -7 -7 -7 -5 -5 -5 -5 -5 -4 -4 -4 -4 -3 -3 -2 -2 -1 --------- Run | Yrd Mat Min Mat Mat Fac Sto Rec Fac Ext Cet Arc Hub Fac Gar Fac Gar Res Qua Res DSF Acc Machines Accessed 103 | . 7 . 8 6 3 4 4 6 11 4 1 . 11 2 7 2 8 16 1 . 2 Terminals 77 | . 7 . 6 4 3 3 4 5 10 4 . . 2 2 5 2 4 14 1 . 1 Fabricators 5 | . . . . . . . . 1 . . . . 3 . 1 . . . . . . Repair Stations 4 | . . . . . . . . . 1 . . . 2 . . . 1 . . . . Recycling Units 2 | . . . . . . . . . . . . . 1 . . . 1 . . . . Scanalyzers 8 | . . . 2 1 . . . . . . . . 2 . . . 1 2 . . . Garrison Access 6 | . . . . 1 . 1 . . . . . . 1 . 1 . 1 . . . 1 Total Hacks 403 | . 13 . 26 26 8 11 14 22 38 9 25 . 51 5 55 6 36 52 2 . 4 Successful 231 | . 10 . 16 16 4 4 8 9 17 6 25 . 35 3 30 3 18 23 1 . 3 Failed 171 | . 3 . 10 10 4 7 6 13 20 3 . . 16 2 25 3 18 29 1 . 1 Catastrophic 20 | . 1 . . 1 1 . . 2 1 . . . 1 1 5 . 2 4 . . 1 Database Lockouts 1 | . . . . . . . . . 1 . . . . . . . . . . . . Manual 142 | . 9 . 13 14 6 5 5 6 11 . . . 12 4 27 5 10 14 . . 1 Terminals 288 | . 13 . 18 14 8 10 14 19 35 9 . . 16 5 52 6 20 44 2 . 3 Fabricators 13 | . . . . . . . . 3 . . . . 8 . 2 . . . . . . Repair Stations 11 | . . . . . . . . . 3 . . . 4 . . . 4 . . . . Recycling Units 5 | . . . . . . . . . . . . . 2 . . . 3 . . . . Scanalyzers 52 | . . . 8 9 . . . . . . . . 19 . . . 8 8 . . . Garrison Access 9 | . . . . 3 . 1 . . . . . . 2 . 1 . 1 . . . 1 Terminal Hacks 157 | . 10 . 8 5 4 3 8 7 15 6 25 . 8 3 25 3 6 18 1 . 2 Record 48 | . . . . . 2 . 2 2 1 5 25 . . . 3 . 2 5 . . 1 Part Schematic 13 | . 1 . 2 . 1 . 3 . 1 . . . 1 . 3 . . 1 . . . Robot Schematic 1 | . . . . . . . . . 1 . . . . . . . . . . . . Robot Analysis 23 | . 3 . 1 4 1 1 1 . 4 . . . . . 6 . 1 1 . . . Prototype ID Bank 7 | . 3 . 1 1 . . 1 . . . . . . . 1 . . . . . . Open Door 9 | . . . . . . 1 . . 4 1 . . . 1 . 1 . 1 . . . Open DSF 1 | . . . . . . . . . . . . . . . . . . . 1 . . Level Access Points 5 | . . . 1 . . . . . 1 . . . . . 1 . 1 1 . . . Branch Access Points 8 | . . . 1 . . 1 1 1 1 . . . . . 1 . . 2 . . . Emergency Access Points 3 | . . . . . . . . . . . . . . . . . . 3 . . . Machine Index 1 | . . . . . . . . . . . . . . . . . . 1 . . . Terminal Index 2 | . . . . . . . . 1 . . . . . . . . 1 . . . . Fabricator Index 1 | . . . 1 . . . . . . . . . . . . . . . . . . Scanalyzer Index 2 | . . . . . . . . . . . . . 1 . 1 . . . . . . Garrison Index 7 | . . . 1 . . . . . . . . . 1 . 2 . 1 1 . . 1 Alert Level 1 | . . . . . . . . . . . . . 1 . . . . . . . . Unreport Threat 12 | . 1 . . . . . . . 2 . . . 2 . 6 . . 1 . . . Locate Traps 3 | . 1 . . . . . . 1 . . . . . . 1 . . . . . . Reprogram Traps 2 | . 1 . . . . . . . . . . . . . . . . 1 . . . Dispatch Records 1 | . . . . . . . . . . . . . 1 . . . . . . . . Recall Investigation 2 | . . . . . . . . 2 . . . . . . . . . . . . . Recall Assault 1 | . . . . . . . . . . . . . 1 . . . . . . . . Garrison Registry 2 | . . . . . . . . . . . . . . 1 . 1 . . . . . Patrol Navigation 1 | . . . . . . . . . . . . . . 1 . . . . . . . Security Stations 1 | . . . . . . . . . . . . . . . . 1 . . . . . Fabricator Hacks 10 | . . . . . . . . 2 . . . . 6 . 2 . . . . . . Load Schematic 5 | . . . . . . . . 1 . . . . 3 . 1 . . . . . . Build 5 | . . . . . . . . 1 . . . . 3 . 1 . . . . . . Repair Station Hacks 8 | . . . . . . . . . 2 . . . 4 . . . 2 . . . . Scan Component 4 | . . . . . . . . . 1 . . . 2 . . . 1 . . . . Repair 4 | . . . . . . . . . 1 . . . 2 . . . 1 . . . . Recycling Unit Hacks 5 | . . . . . . . . . . . . . 2 . . . 3 . . . . Process 1 | . . . . . . . . . . . . . . . . . 1 . . . . Report Inventory 2 | . . . . . . . . . . . . . 1 . . . 1 . . . . Retrieve Matter 1 | . . . . . . . . . . . . . . . . . 1 . . . . Retrieve Components 1 | . . . . . . . . . . . . . 1 . . . . . . . . Scanalyzer 41 | . . . 8 9 . . . . . . . . 14 . . . 6 4 . . . Insert Component 17 | . . . 4 4 . . . . . . . . 5 . . . 2 2 . . . Analyze 24 | . . . 4 5 . . . . . . . . 9 . . . 4 2 . . . Garrison Access Hacks 6 | . . . . 1 . 1 . . . . . . 1 . 1 . 1 . . . 1 Unlock Access 2 | . . . . . . . . . . . . . 1 . 1 . . . . . . Seal Access 4 | . . . . 1 . 1 . . . . . . . . . . 1 . . . 1 Unauthorized Hacks 4 | . . . . 1 . . . . . . . . . . 2 . . 1 . . . Terminals 4 | . . . . 1 . . . . . . . . . . 2 . . 1 . . . Assimilate 4 | . . . . 1 . . . . . . . . . . 2 . . 1 . . . Fabricators . | . . . . . . . . . . . . . . . . . . . . . . Repair Stations . | . . . . . . . . . . . . . . . . . . . . . . Recycling Units . | . . . . . . . . . . . . . . . . . . . . . . Scanalyzers . | . . . . . . . . . . . . . . . . . . . . . . Garrison Access . | . . . . . . . . . . . . . . . . . . . . . . Data Cores Recovered 3 | . . . . . . . . 1 1 . . . . . 1 . . . . . . Used . | . . . . . . . . . . . . . . . . . . . . . . Hacking Detections 71 | . 5 . 4 5 3 2 4 6 8 1 . . 9 1 7 1 6 8 . . 1 Full Trace Events 19 | . . . . 1 1 2 . 4 2 1 . . 4 . 1 . 1 2 . . . Feedback Events 1 | . . . . . . . . 1 . . . . . . . . . . . . . Corruption 1 | . . . . . . . . 1 . . . . . . . . . . . . . Feedback Blocked . | . . . . . . . . . . . . . . . . . . . . . . Robot Schematics Acquired 1 | . . . . . . . . . 1 . . . . . . . . . . . . Robots Built . | . . . . . . . . . . . . . . . . . . . . . . Authchips . | . . . . . . . . . . . . . . . . . . . . . . Time . | . . . . . . . . . . . . . . . . . . . . . . Total Robot Build Rating . | . . . . . . . . . . . . . . . . . . . . . . Part Schematics Acquired 29 | . 1 . 6 4 1 . 3 . 1 . . . 5 . 3 . 2 3 . . . Parts Built 8 | . . . . . . . . 2 . . . . 6 . . . . . . . . Authchips . | . . . . . . . . . . . . . . . . . . . . . . Time 262 | . . . . . . . . 47 . . . . 157 . 58 . . . . . . Total Part Build Rating 54 | . . . . . . . . 10 . . . . 44 . . . . . . . . Parts Repaired 4 | . . . . . . . . . 1 . . . 2 . . . 1 . . . . Time 225 | . . . . . . . . . 50 . . . 157 . . . 18 . . . . Parts Recycled . | . . . . . . . . . . . . . . . . . . . . . . Recycled Matter 102 | . . . . . . . . . . . . . . . . . 102 . . . . Retrieved Matter 143 | . . . . . . . . . . . . . . . . . 143 . . . . Retrieved Components 1 | . . . . . . . . . . . . . 1 . . . . . . . . Parts Scanalyzed 16 | . . . 4 4 . . . . . . . . 5 . . . 1 2 . . . Part Schematics Acquired 16 | . . . 4 4 . . . . . . . . 4 . . . 2 2 . . . Parts Damaged 2 | . . . . . . . . . . . . . 1 . . . . 1 . . . Bothacking | -11 -10 -10 -9 -8 -7 -7 -7 -5 -5 -5 -5 -5 -4 -4 -4 -4 -3 -3 -2 -2 -1 ------------ Run | Yrd Mat Min Mat Mat Fac Sto Rec Fac Ext Cet Arc Hub Fac Gar Fac Gar Res Qua Res DSF Acc Used RIF Installer 2 | . . . . . . . . . . . . . . 1 . 1 . . . . . Command Fork 1 | . . . . . . . . . . . . . . . . 1 . . . . . Robots Hacked . | . . . . . . . . . . . . . . . . . . . . . . Non-combat . | . . . . . . . . . . . . . . . . . . . . . . Combat . | . . . . . . . . . . . . . . . . . . . . . . Robot Hacks Applied . | . . . . . . . . . . . . . . . . . . . . . . Relay Couplers Released 6 | . . . . . . . . . . . . . . 4 . 1 . . . . 1 Machine Destruction 5 | . . . . . . . . . . . . . . 4 . 1 . . . . . Programmers 1 | . . . . . . . . . . . . . . . . . . . . . 1 Fabnet Peak Effective % . | . . . . . . . . . . . . . . . . . . . . . . Robots Rewired 38 | . . . . . . . 16 . 16 . . . . 3 . 3 . . . . . Allies Hacked 1 | . . . . . . . . . . . . . . . 1 . . . . . . Hacks Repelled . | . . . . . . . . . . . . . . . . . . . . . . Allies | -11 -10 -10 -9 -8 -7 -7 -7 -5 -5 -5 -5 -5 -4 -4 -4 -4 -3 -3 -2 -2 -1 -------- Run | Yrd Mat Min Mat Mat Fac Sto Rec Fac Ext Cet Arc Hub Fac Gar Fac Gar Res Qua Res DSF Acc Total Allies 47 | . . 2 . 1 . . 16 . 21 . . . . 3 1 3 . . . . . Largest Group 17 | . . 2 2 1 1 . 15 15 17 3 . . . 3 4 4 . . . . . Highest-Rated Group 540 | . . 48 48 10 10 . 355 355 540 104 . . . 122 167 181 . . . . . Highest-Rated Ally 159 | . . 31 31 10 10 . 40 40 159 40 . . . 46 46 51 . . . . . Total Orders . | . . . . . . . . . . . . . . . . . . . . . . Ally Attacks 272 | . . . 13 . . . 4 11 169 20 . . . . 33 22 . . . . . Total Damage 5758 | . . . 190 . . . 80 603 3206 336 . . . . 860 483 . . . . . Kills 47 | . . . 3 . . . 2 5 22 . . . . . 9 6 . . . . . Allies Corrupted . | . . . . . . . . . . . . . . . . . . . . . . Allies Melted . | . . . . . . . . . . . . . . . . . . . . . . Intel | -11 -10 -10 -9 -8 -7 -7 -7 -5 -5 -5 -5 -5 -4 -4 -4 -4 -3 -3 -2 -2 -1 ------- Run | Yrd Mat Min Mat Mat Fac Sto Rec Fac Ext Cet Arc Hub Fac Gar Fac Gar Res Qua Res DSF Acc Robot Analysis Total 23 | . 3 . 1 4 1 1 1 . 4 . . . . . 6 . 1 1 . . . Derelict Logs Recovered 1 | . . 1 . . . . . . . . . . . . . . . . . . . Drone Launches . | . . . . . . . . . . . . . . . . . . . . . . Drone Recoveries . | . . . . . . . . . . . . . . . . . . . . . . Exploration | -11 -10 -10 -9 -8 -7 -7 -7 -5 -5 -5 -5 -5 -4 -4 -4 -4 -3 -3 -2 -2 -1 ------------- Run | Yrd Mat Min Mat Mat Fac Sto Rec Fac Ext Cet Arc Hub Fac Gar Fac Gar Res Qua Res DSF Acc Turns Passed 21363 | 110 695 870 1206 1660 782 1236 593 411 1264 1394 239 321 2464 919 1121 466 2557 1763 165 184 943 Spaces Moved 11567 | 87 609 551 1005 741 578 455 450 297 706 520 179 135 1179 451 602 250 1215 820 96 135 506 Core 10 | 9 . . . . 1 . . . . . . . . . . . . . . . . Treads . | . . . . . . . . . . . . . . . . . . . . . . Legs . | . . . . . . . . . . . . . . . . . . . . . . Wheels 11557 | 78 609 551 1005 741 577 455 450 297 706 520 179 135 1179 451 602 250 1215 820 96 135 506 Hover . | . . . . . . . . . . . . . . . . . . . . . . Flight . | . . . . . . . . . . . . . . . . . . . . . . Fastest Speed 50 | 50 80 80 80 83 86 100 100 100 115 115 115 115 100 100 115 115 100 100 115 115 115 Average Speed 102 | 79 80 80 81 85 90 100 100 102 115 115 115 115 106 114 115 115 114 114 115 115 115 Slowest Speed 350 | 100 80 80 83 86 350 100 100 115 115 115 115 115 115 115 115 115 115 115 115 115 115 Overloaded Moves . | . . . . . . . . . . . . . . . . . . . . . . Propulsion Burnouts . | . . . . . . . . . . . . . . . . . . . . . . Robots Hopped 2 | . . . . . . . . 2 . . . . . . . . . . . . . Cave-ins Triggered . | . . . . . . . . . . . . . . . . . . . . . . Teleports 2 | . . . . . . . . . . . . . . . . . . 2 . . . Exploration Rate (%) 50 | 4 84 94 70 60 14 61 83 8 79 97 98 9 20 59 14 40 33 65 2 90 16 Regions Visited 21 Branch Regions 8 Pre-discovered Areas 1 | . . . . . . 1 . . . . . . . . . . . . . . . Known Exits Taken 17 | . 1 1 1 1 1 1 1 1 1 1 1 1 1 . 1 . 1 1 1 . . Unknown Exits Taken 1 | 1 . . . . . . . . . . . . . . . . . . . . . Scrap Searched 1 | . . 1 . . . . . . . . . . . . . . . . . . . Spaces Dug 47 | . . . . 4 2 8 . . . . . 7 10 . . . 11 5 . . . Terrain Destroyed 699 | . . . . 4 2 9 . . 84 33 4 156 96 62 81 13 78 33 . 2 42 Melee 6 | . . . . 4 2 . . . . . . . . . . . . . . . . Projectile 324 | . . . . . . 9 . . 11 18 4 16 81 12 30 13 78 33 . 2 17 AOE 369 | . . . . . . . . . 73 15 . 140 15 50 51 . . . . . 25 Terrain Rammed . | . . . . . . . . . . . . . . . . . . . . . . Walls Destroyed . | . . . . . . . . . . . . . . . . . . . . . . Machines Disabled . | . . . . . . . . . . . . . . . . . . . . . . Actions | -11 -10 -10 -9 -8 -7 -7 -7 -5 -5 -5 -5 -5 -4 -4 -4 -4 -3 -3 -2 -2 -1 --------- Run | Yrd Mat Min Mat Mat Fac Sto Rec Fac Ext Cet Arc Hub Fac Gar Fac Gar Res Qua Res DSF Acc Total 18933 | 106 748 946 1262 1615 792 1139 574 385 1004 1175 191 272 2148 658 954 342 2053 1489 151 151 778 Wait 5260 | . 72 349 137 729 156 564 39 67 74 514 . 110 718 41 301 28 607 516 33 3 202 Move 11544 | 86 608 550 1004 740 577 454 449 293 705 519 178 134 1179 449 602 249 1214 819 95 134 506 Hop 1 | . . . . . . . . 1 . . . . . . . . . . . . . Pick Up 78 | 3 5 5 9 5 2 3 2 2 6 7 . 1 11 2 . . 4 7 . . 4 Fast Attach 66 | 7 1 1 2 . 7 3 1 2 5 4 1 2 11 3 . . 2 13 . . 1 Attach 23 | . . . 4 1 1 . 1 . 1 . . . 4 1 . 1 2 4 1 . 2 Detach 17 | . . . 2 1 . . . . . . . . 7 . . . 3 2 1 . 1 Swap 115 | . 1 3 2 13 3 12 . 4 5 10 1 1 18 2 4 3 18 13 2 . . Drop 123 | . 6 7 8 8 8 10 1 5 9 10 2 3 20 2 . . 7 11 2 1 3 Fire 954 | 10 39 19 67 78 19 57 9 8 78 69 9 12 100 80 30 35 130 62 . 5 38 Melee 8 | . . . . 4 2 2 . . . . . . . . . . . . . . . Ram 2 | . . . 1 . . . . . 1 . . . . . . . . . . . . Kick . | . . . . . . . . . . . . . . . . . . . . . . Crush . | . . . . . . . . . . . . . . . . . . . . . . Escape Stasis 56 | . . . . . . . . . 8 . . . . 24 . . 8 8 . 8 . Rewire 152 | . . . . . . . 66 . 66 . . . . 7 2 11 . . . . . Trap . | . . . . . . . . . . . . . . . . . . . . . . Miscellaneous 534 | . 16 12 26 36 17 34 6 3 46 42 . 9 80 47 15 15 58 34 17 . 21 Route ------- -11/Scrapyard -10/Materials (discovered 4 exits: *Mat x3 / *Min) -10/Mines (discovered 3 exits: *Mat x2 / *Sub) -9/Materials (discovered 4 exits: *Mat x3 / *Min) -8/Materials (discovered 2 exits: *Fac x2) -7/Factory -7/Storage -7/Recycling -5/Factory (discovered 4 exits: Upp x2 / *Ext x2) -5/Extension (discovered 3 exits: *Fac x2 / *Cet) -5/Cetus (discovered 3 exits: *Fac x2 / *Arc) -5/Archives (discovered 3 exits: *Fac / *Hub x2) -5/Hub_04(d) -4/Factory (discovered 2 exits: *Res / Gar) -4/Garrison (discovered 3 exits: *Fac x3) -4/Factory (discovered 7 exits: Res x4 / *Upp x2 / Gar) -4/Garrison (discovered 3 exits: *Res x3) -3/Research (discovered 4 exits: *Res x3 / *Qua) -3/Quarantine -2/Research -2/DSF -1/Access History --------- Turn | Location | Event 1 | -11/Scrapyard | Upgraded with Propulsion slot (x1) 1 | -11/Scrapyard | Upgraded with Utility slot (x1) 1 | -11/Scrapyard | Upgraded with Weapon slot (x1) 34 | -11/Scrapyard | Discovered new exit (range 15) 111 | -11/Scrapyard | Entered Materials 302 | -10/Materials | Build established: Mutant 388 | -10/Materials | Discovered new exit (range 4) 390 | -10/Materials | Identified exit to Materials 411 | -10/Materials | Reached level 2 471 | -10/Materials | Discovered new exit (range 8) 475 | -10/Materials | Identified exit to Mines 648 | -10/Materials | Discovered exit to Materials (range 12) 740 | -10/Materials | Discovered exit to Materials (range 16) 806 | -10/Materials | Entered Mines 806 | -10/Mines | Discovered exit to Materials (range 12) 925 | -10/Mines | Build established: Skirmisher 1194 | -10/Mines | Found a hidden stash of uninstalled traps 1228 | -10/Mines | Reached level 3 1231 | -10/Mines | Discovered new exit (range 16) 1242 | -10/Mines | Upgraded with Propulsion slot (x1) 1242 | -10/Mines | Upgraded with Utility slot (x1) 1372 | -10/Mines | Build established: Hacker-Skirmisher 1424 | -10/Mines | Identified exit to Subcaves 1529 | -10/Mines | Discovered exit to Materials (range 4) 1676 | -10/Mines | Entered Materials 1676 | -9/Materials | Accompanied by 2 allies 1678 | -9/Materials | Reached level 4 1680 | -9/Materials | Upgraded with Utility slot (x1) 1681 | -9/Materials | Led the pair of lost Derelicts to an unsafe place 1896 | -9/Materials | Discovered new exit (range 16) 1959 | -9/Materials | Identified exit to Mines 2008 | -9/Materials | Reached level 5 2483 | -9/Materials | Reached level 6 2504 | -9/Materials | Identified exit to Materials 2575 | -9/Materials | Upgraded with Utility slot (x1) 2787 | -9/Materials | Destroyed 9 combat bots 2813 | -9/Materials | Reached level 7 2821 | -9/Materials | Upgraded with Utility slot (x1) 2882 | -9/Materials | Entered another Materials area 2884 | -8/Materials | Reached level 8 2890 | -8/Materials | Build established: Scavenger-Skirmisher 2917 | -8/Materials | Garrison activated, responded to threat 3195 | -8/Materials | Reached level 9 3261 | -8/Materials | Build established: Hacker-Skirmisher 4030 | -8/Materials | Discovered new exit (range 11) 4039 | -8/Materials | Identified exit to Factory 4475 | -8/Materials | Discovered exit to Factory (range 13) 4542 | -8/Materials | Entered Factory 4542 | -7/Factory | Accompanied by 1 ally 4544 | -7/Factory | Reached level 10 4544 | -7/Factory | Reached level 11 4544 | -7/Factory | Upgraded with Propulsion slot (x1) 4544 | -7/Factory | Upgraded with Utility slot (x1) 5279 | -7/Factory | Discovered new exit (range 7) 5284 | -7/Factory | Identified exit to Storage 5324 | -7/Factory | Entered Storage 5325 | -7/Storage | Identified exit to Recycling 5326 | -7/Storage | Reached level 12 5327 | -7/Storage | Upgraded with Power slot (x1) 5566 | -7/Storage | Learned location of Armory (-3) 6052 | -7/Storage | Garrison activated, responded to threat 6055 | -7/Storage | Reached level 13 6534 | -7/Storage | Reached level 14 6557 | -7/Storage | Used back door to open Recycling access 6560 | -7/Storage | Entered Recycling 6560 | -7/Recycling | Upgraded with Utility slot (x1) 6560 | -7/Recycling | Upgraded with Weapon slot (x1) 6624 | -7/Recycling | Discovered new exit (range 11) 6638 | -7/Recycling | Identified exit to Factory 7153 | -7/Recycling | Entered Factory 7153 | -5/Factory | Accompanied by 15 allies 7155 | -5/Factory | Reached level 15 7155 | -5/Factory | Reached level 16 7155 | -5/Factory | Upgraded with Power slot (x1) 7159 | -5/Factory | Build established: Commander-Skirmisher 7255 | -5/Factory | Fabricated Imp. Trap Scanner? 7279 | -5/Factory | Reached level 17 7379 | -5/Factory | Identified exit to Upper Caves 7379 | -5/Factory | Identified exit to Extension 7564 | -5/Factory | Entered Extension 7564 | -5/Extension | Accompanied by 12 allies 7566 | -5/Extension | Reached level 18 7623 | -5/Extension | Build established: Commander-Gunner 7724 | -5/Extension | Reached level 19 7753 | -5/Extension | Lost 3 allies 7845 | -5/Extension | Rescued a captive Derelict 7846 | -5/Extension | Rescued a captive Derelict 7862 | -5/Extension | Upgraded with Utility slot (x1) 7940 | -5/Extension | Rescued a captive Derelict 7982 | -5/Extension | Spotted B-75 Beast 8001 | -5/Extension | Rescued A7 8009 | -5/Extension | Spotted B-75 Beast 8039 | -5/Extension | Disrupted transfer network 8048 | -5/Extension | Allies destroyed B-75 Beast 8076 | -5/Extension | Destroyed B-75 Beast 8087 | -5/Extension | Discovered new exit (range 14) 8098 | -5/Extension | Lost 15 allies 8126 | -5/Extension | Reached level 20 8150 | -5/Extension | Destroyed 9 combat bots 8328 | -5/Extension | Build established: Hacker-Gunner 8548 | -5/Extension | Upgraded with Weapon slot (x1) 8578 | -5/Extension | Repaired Broken Cld. Plasma Cannon 8645 | -5/Extension | Central database locked down 8647 | -5/Extension | Identified exit to Factory 8690 | -5/Extension | Reached level 21 8739 | -5/Extension | Lost 4 allies 8767 | -5/Extension | Identified exit to Cetus 8782 | -5/Extension | Rescued a captive Derelict 8828 | -5/Extension | Entered Cetus 8828 | -5/Cetus | Accompanied by 3 allies 8850 | -5/Cetus | Spotted Cetus Guard 8850 | -5/Cetus | Spotted Cetus Guard 8854 | -5/Cetus | Destroyed Cetus Guard 8854 | -5/Cetus | Spotted Cetus Guard 8860 | -5/Cetus | Destroyed Cetus Guard 8862 | -5/Cetus | Spotted Cetus Guard 8867 | -5/Cetus | Destroyed Cetus Guard 8880 | -5/Cetus | Destroyed Cetus Guard 8900 | -5/Cetus | Upgraded with Propulsion slot (x1) 9200 | -5/Cetus | Build established: Scavenger-Gunner 9355 | -5/Cetus | Discovered exit to Factory (range 18) 9875 | -5/Cetus | Reached level 22 9948 | -5/Cetus | Found a strange terminal 9959 | -5/Cetus | Cetus Manufacturing Module disabled 9973 | -5/Cetus | Discovered new exit (range 19) 9993 | -5/Cetus | Identified exit to Archives 10017 | -5/Cetus | Spotted Cetus Guard 10018 | -5/Cetus | Spotted Cetus Guard 10036 | -5/Cetus | Spotted Cetus Guard 10037 | -5/Cetus | Destroyed Cetus Guard 10037 | -5/Cetus | Spotted Cetus Guard 10050 | -5/Cetus | Destroyed Cetus Guard 10053 | -5/Cetus | Destroyed Cetus Guard 10063 | -5/Cetus | Destroyed Cetus Guard 10079 | -5/Cetus | Discovered exit to Factory (range 18) 10088 | -5/Cetus | Met Revision 17 10180 | -5/Cetus | Upgraded with Propulsion slot (x1) 10222 | -5/Cetus | Entered Archives 10278 | -5/Archives | Discovered new exit (range 19) 10297 | -5/Archives | Unable to access archive contents 10309 | -5/Archives | Unable to access archive contents 10313 | -5/Archives | Discovered exit to Factory (range 15) 10320 | -5/Archives | Unable to access archive contents 10325 | -5/Archives | Discovered new exit (range 16) 10332 | -5/Archives | Unable to access archive contents 10350 | -5/Archives | Unable to access archive contents 10412 | -5/Archives | Identified exit to Hub_04(d) 10461 | -5/Archives | Entered Hub_04(d) 10712 | -5/Hub_04(d) | Discovered exit to Factory (range 11) 10756 | -5/Hub_04(d) | Network Hub disabled 10761 | -5/Hub_04(d) | First assault squad dispatched 10763 | -5/Hub_04(d) | Reached level 23 10768 | -5/Hub_04(d) | Spotted B-75 Beast 10771 | -5/Hub_04(d) | Spotted Lightning 10781 | -5/Hub_04(d) | Spotted Lightning 10782 | -5/Hub_04(d) | Entered Factory 11187 | -4/Factory | Reached level 24 11353 | -4/Factory | Fabricated Arm. Huge Wheel (x2) 11378 | -4/Factory | Upgraded with Utility slot (x1) 11465 | -4/Factory | Fabricated Lgt. Quantum Reactor? 11470 | -4/Factory | Fabricated Lgt. Quantum Reactor? 11554 | -4/Factory | Core integrity fell below 50% 12003 | -4/Factory | Reached level 25 12282 | -4/Factory | First assault squad dispatched 12287 | -4/Factory | Garrison activated, responded to threat 12345 | -4/Factory | Discovered new exit (range 10) 12556 | -4/Factory | Build established: Hacker-Gunner 12897 | -4/Factory | Repaired Broken Lgt. Quantum Reactor 13050 | -4/Factory | Identified exit to Research 13144 | -4/Factory | Repaired Centrium Medium Armor Plating 13246 | -4/Factory | Identified exit to Garrison 13246 | -4/Factory | Entered Garrison 13296 | -4/Garrison | Triggered checkpoint 13333 | -4/Garrison | Destroyed 7 combat bots 13346 | -4/Garrison | Garrison Relay disabled 13443 | -4/Garrison | Spotted B-86 Titan 13443 | -4/Garrison | Triggered checkpoint 13523 | -4/Garrison | Reached level 26 13523 | -4/Garrison | Triggered checkpoint 13565 | -4/Garrison | Destroyed B-86 Titan 13617 | -4/Garrison | Discovered new exit (range 36) 13617 | -4/Garrison | Discovered new exit (range 34) 13617 | -4/Garrison | Discovered new exit (range 42) 13650 | -4/Garrison | Triggered checkpoint 13692 | -4/Garrison | Triggered checkpoint 13817 | -4/Garrison | Destroyed 15 combat bots 13819 | -4/Garrison | Garrison Relay disabled 13866 | -4/Garrison | Installed Relay Interface Framework 13978 | -4/Garrison | Garrison Relay disabled 14005 | -4/Garrison | Identified exit to Factory 14040 | -4/Garrison | Phase Generator disabled 14045 | -4/Garrison | Triggered checkpoint 14165 | -4/Garrison | Entered Factory 14165 | -4/Factory | Accompanied by 3 allies 14406 | -4/Factory | Spotted B-86 Titan 14495 | -4/Factory | P-70 Sage assimilated allied H0-L3L(l) 14522 | -4/Factory | Identified exit to Upper Caves 14798 | -4/Factory | Reached level 27 15286 | -4/Factory | Identified exit to Garrison 15286 | -4/Factory | Entered Garrison 15286 | -4/Garrison | Accompanied by 1 ally 15298 | -4/Garrison | Discovered exit to Research (range 41) 15298 | -4/Garrison | Discovered exit to Research (range 58) 15298 | -4/Garrison | Discovered exit to Research (range 85) 15298 | -4/Garrison | Learned Research security intel 15420 | -4/Garrison | Heavy support dispatched to Research 15440 | -4/Garrison | Garrison Relay disabled 15500 | -4/Garrison | Triggered checkpoint 15502 | -4/Garrison | Triggered checkpoint 15504 | -4/Garrison | Spotted B-86 Titan 15641 | -4/Garrison | Destroyed B-86 Titan 15742 | -4/Garrison | Expanded RIF knowledge: Command Fork 15742 | -4/Garrison | Upgraded with Utility slot (x1) 15752 | -4/Garrison | Entered Research 15754 | -3/Research | Reached level 28 15870 | -3/Research | Identified exit to Research 17527 | -3/Research | Reached level 29 17531 | -3/Research | First assault squad dispatched 17654 | -3/Research | Destroyed 7 combat bots 17992 | -3/Research | Spotted B-86 Titan 18142 | -3/Research | Destroyed B-86 Titan 18255 | -3/Research | Repaired Adv. System Restoration Module 18294 | -3/Research | Discovered new exit (range 13) 18307 | -3/Research | Identified exit to Quarantine 18309 | -3/Research | Entered Quarantine 18910 | -3/Quarantine | Found Alien Artifact 18911 | -3/Quarantine | Identified Subatomic Replicator 19167 | -3/Quarantine | Found Unknown Launcher 19167 | -3/Quarantine | Identified Gamma Bomb Array 19210 | -3/Quarantine | Met incapacitated Sigix Warrior 19210 | -3/Quarantine | Lockdown squad dispatched 19210 | -3/Quarantine | Reached level 30 19227 | -3/Quarantine | Acquired the access code to the Sigix quarantine chamber 19230 | -3/Quarantine | Unlocked Sigix quarantine chamber 19310 | -3/Quarantine | Spotted Lightning 19313 | -3/Quarantine | Spotted Lightning 19317 | -3/Quarantine | Spotted Lightning 19343 | -3/Quarantine | Destroyed Lightning 19349 | -3/Quarantine | Destroyed Lightning 19403 | -3/Quarantine | Cryocooling Duct disabled 19409 | -3/Quarantine | Destroyed Lightning 19418 | -3/Quarantine | Ambient heat levels rising (+20) 19418 | -3/Quarantine | Non-combat units ordered to evacuate 19540 | -3/Quarantine | Found Alien Artifact 19540 | -3/Quarantine | Identified Transdimensional Reconstructor 19540 | -3/Quarantine | Warped through subspace 19588 | -3/Quarantine | Found Alien Artifact 19588 | -3/Quarantine | Identified Hpw. Transdimensional Reconstructor 19588 | -3/Quarantine | Warped through subspace 19589 | -3/Quarantine | Core integrity fell below 50% 19653 | -3/Quarantine | Upgraded with Power slot (x1) 19987 | -3/Quarantine | Cryocooling Duct disabled 20002 | -3/Quarantine | Ambient heat levels rising (+20) 20002 | -3/Quarantine | Combat units ordered to evacuate 20065 | -3/Quarantine | Destroyed 7 combat bots 20072 | -3/Quarantine | Entered Research 20236 | -2/Research | Identified exit to DSF 20237 | -2/Research | Entered DSF 20237 | -2/DSF | Reached level 31 20259 | -2/DSF | Additional patrols routed to DSF 20401 | -2/DSF | Discovered new exit (range 15) 20419 | -2/DSF | Identified exit to Access 20421 | -2/DSF | Entered Access 20423 | -1/Access | Reached level 32 20863 | -1/Access | Upgraded with Utility slot (x1) 20890 | -1/Access | Reached level 33 21029 | -1/Access | Energy Cycler disabled 21333 | -1/Access | Core integrity fell below 50% 21354 | -1/Access | Core integrity fell below 20% 21364 | -1/Access | Destroyed by S-43 Plague with Heavy Machine Gun Last Messages --------------- 21350_ Slug penetrates G-73 Enforcer. 21351_ Slug penetrates H-88 Terminator. 21351_ H-88 Terminator destroyed. 21351_ Slug penetrates Wall. 21351_ P-80 Master knocked back. 21351_ P-80 Master destroyed. 21352_ Acquired 15 matter. 21352_ Slug penetrates G-73 Enforcer. 21353_ G-73 Enforcer destroyed. 21353_ Penetrated by Slug. 21356_ Acquired 15 matter. 21358_ Slug penetrates Wall. 21358_ Penetrated by Slug. 21359_ H-88 Terminator knocked back. 21360_ Acquired 15 matter. 21361_ Slug penetrates Wall. 21362_ G-73 Enforcer destroyed. 21362_ H-88 Terminator knocked back. 21363_ Acquired 15 matter. 21363_ Penetrated by Slug. Map ----- +----------------------------------------------------+ | ^ ###?##?# """""" #?#?????#??## | | #####?## """""" #?????#???### | | % """" ###??### """""" #?????????#?? | | """" ##?##################????????#### | | """" ? ? ???#??#?????#??#?#???????## | | """""% ? ?#?###????????#?????????#? | | ^ """"%! ??#??#????#???#????????????? | | ??|!! ?##??#??????#????????????#? | | [%[ ????????? ????????????????? | | ? %! ????"????????????????????? | | % #? ??????????????????????? | | ######/##??"##### # ??" ?? ????????????????? | | ? ? ? ???? ??#?# #???? o??? ??????????????? | | ? ????#???## #?? ? ? ???????????????? | | ?? ???? ? # + ????????????????? | | ?? ??????# ?# # ? ? ????????????? | | ?? ? ? # ?? # # ? ???? ????????????? | | ? ? ? ? # #?? ?? ? ?#???????????? | | ? ? ? ?#? # #? ?? ? ??##?????????? | | ########+## ?# # ?? ? ??#??????????? | | ###### # ? ? # ###???##?#?????##????????? | | ###### # # ##############???????????? | | ###### + # # #??#????????? | | # # # # ! ##??????????? | | ## ## # #[ % #?##????????? | | ## ## # #@% #??#????????? | | ## ######## #%%[ ###?????????? | | ## ## # s=!s="" #?#?????????? | | ## ## k =sghs%"" ##??????????? | | ## ## #R [%!#= "R #?#?????????? | | ## ## # = # """ ####????????? | | ##+###% # # k !# """ ###?????????? | | !* # # # ##??????????? | | !%= %% + # # ###?????????? | | ###### # # ##############???????????? | | ########### # ##?####?????###??????????? | | ######??### * # # ?"?""???? ???????????? | | ########### #R # ??"?" ??????????????? | | ########### # #??"? F? ????????????????? | | #########?####### C # ? ? ? ??????????????? | | ######?########## # ?? ?????????????????? | | ####?####?####### #?? ?? ?????????????????? | | #####??######?#?# +? ????????????????????? | | #####??#?#?####?# % #????????????????????????? | | #?#?##?##?###?### #????????????????????????? | | #####?#??###?##?? % ?????????????????????????? | | ###???#######??##????????????????????????????????? | | #? ?? ? ????????????????????????????????? | | #? ? ? ?? ?????????????????????????????????? | | ?#??? ? ? ?????????????????????????????????????? | +----------------------------------------------------+ Best States ------------- Heat Dissipation 127 Coolant Potential 100 Energy Generation 91 Energy Capacity 840 Matter Stores 350 Matter Capacity 350 Sight Range 19 Robot Scan Range 18 Terrain Scan Range 16 Terrain Scan Density 210 Jamming Range 12 Cloak Strength 3 Base Temperature (-) 200 Armor Coverage 225 Resistance: KI 30 Resistance: TH 30 Resistance: EX 30 Resistance: EM 20 Resistance: I 20 Resistance: S 20 Resistance: P 20 Phase Shifting 10 Evasion (%) 50 Targeting Accuracy 8 Offensive Hacking 35 Defensive Hacking 10 Item Schematics ----------------- Wheel | -10/Materials | Hacked Imp. Heat Sink | -9/Materials | Scanalyzed Lgt. Armor Plating | -9/Materials | Scanalyzed Mak. Cloaking Device | -9/Materials | Scanalyzed Arm. Wheel | -9/Materials | Scanalyzed Mining Claw | -9/Materials | Hacked Mining Laser | -9/Materials | Hacked Imp. Targeting Computer | -8/Materials | Scanalyzed Imp. Grenade Launcher | -8/Materials | Scanalyzed Nuclear Core | -8/Materials | Scanalyzed Imp. Ion Engine | -8/Materials | Scanalyzed Imp. Trap Scanner | -7/Factory | Hacked Adv. Plasma Cannon | -7/Recycling | Hacked Thermic Laser | -7/Recycling | Hacked Mass Driver | -7/Recycling | Hacked Hvy. Siege Treads | -5/Extension | Hacked Arm. Huge Wheel | -4/Factory | Scanalyzed System Restoration Module | -4/Factory | Scanalyzed Phase Shifter | -4/Factory | Scanalyzed Lgt. Quantum Reactor | -4/Factory | Scanalyzed Adv. Phase Shifter | -4/Factory | Hacked Adv. Cryofiber Web | -4/Factory | Hacked Adv. Terrain Scanner | -4/Factory | Hacked Enh. Nova Cannon | -4/Factory | Hacked Imp. Force Field | -3/Research | Scanalyzed Cld. Plasma Cannon | -3/Research | Scanalyzed Enh. Quantum Rifle | -3/Quarantine | Hacked Com. Particle Reactor | -3/Quarantine | Scanalyzed Lrn. Tractor Beam | -3/Quarantine | Scanalyzed Robot Schematics ------------------ Y-64 Sentinel | -5/Extension | Hacked Fabricated ------------ Imp. Trap Scanner | x2 | -5/Factory Arm. Huge Wheel | x2 | -4/Factory Lgt. Quantum Reactor | x2 | -4/Factory Lgt. Quantum Reactor | x2 | -4/Factory Alien Tech Used ----------------- Subatomic Replicator Transdimensional Reconstructor High-powered Transdimensional Reconstructor Achievements -------------- None Challenges ------------ None RPGLIKE | -11 -10 -10 -9 -8 -7 -7 -7 -5 -5 -5 -5 -5 -4 -4 -4 -4 -3 -3 -2 -2 -1 --------- Run | Yrd Mat Min Mat Mat Fac Sto Rec Fac Ext Cet Arc Hub Fac Gar Fac Gar Res Qua Res DSF Acc Levels Raised 32 | . 1 1 4 2 2 3 . 3 4 1 . 1 2 1 1 . 2 1 . 1 2 XP Earned 53022 | 4000 1690 1550 5952 4240 3059 3169 1127 3817 5745 1666 316 711 3749 1646 798 424 3043 1242 979 629 3470 XP Spent 51810 | 3700 150 3140 5450 3385 3175 1310 3185 4045 3700 3100 . . 5420 . . 3200 1100 2600 . . 5150 Upgrades 91 | 12 1 7 4 19 3 4 3 15 2 2 . . 9 . . 1 1 2 . . 6 Power Slot 3 | . . . . . . 1 . 1 . . . . . . . . . 1 . . . Propulsion Slot 5 | 1 . 1 . . 1 . . . . 2 . . . . . . . . . . . Utility Slot 11 | 1 . 1 3 . 1 . 1 . 1 . . . 1 . . 1 . . . . 1 Weapon Slot 3 | 1 . . . . . . 1 . 1 . . . . . . . . . . . . Core Integrity 10 | . . . . 5 1 . 1 3 . . . . . . . . . . . . . Heat Dissipation 17 | . . 1 . 2 . 1 . 2 . . . . 6 . . . . . . . 5 Energy Generation 2 | 1 . . . . . . . 1 . . . . . . . . . . . . . Matter Storage 1 | . . . . . . 1 . . . . . . . . . . . . . . . Mass Support 3 | . . . . . . . . 1 . . . . 1 . . . 1 . . . . Inventory Capacity 6 | 3 . 1 1 . . . . . . . . . . . . . . 1 . . . Sight Range 3 | . . . . 2 . . . 1 . . . . . . . . . . . . . Sensor Range 9 | 4 1 . . 4 . . . . . . . . . . . . . . . . . Terrain Scan Density 2 | 1 . 1 . . . . . . . . . . . . . . . . . . . Ranged Accuracy 2 | . . . . 1 . 1 . . . . . . . . . . . . . . . Hack Attack % 3 | . . 1 . 1 . . . . . . . . 1 . . . . . . . . Hack Defense % 2 | . . 1 . 1 . . . . . . . . . . . . . . . . . KI Resistance % 2 | . . . . 1 . . . 1 . . . . . . . . . . . . . TH Resistance % 2 | . . . . 1 . . . 1 . . . . . . . . . . . . . EX Resistance % 2 | . . . . 1 . . . 1 . . . . . . . . . . . . . KI Damage % 1 | . . . . . . . . 1 . . . . . . . . . . . . . TH Damage % 1 | . . . . . . . . 1 . . . . . . . . . . . . . EX Damage % 1 | . . . . . . . . 1 . . . . . . . . . . . . . Protomatter Created 5955 | . 163 68 248 525 220 413 174 . 141 381 . 140 875 705 262 220 684 471 . . 265 Integrity Restored 10679 | . 297 240 469 698 309 691 96 51 846 857 . 188 1709 991 251 226 1236 729 350 . 445 Core 7541 | . 250 190 352 463 209 327 66 22 544 476 . 129 1265 548 136 208 1117 729 272 . 238 Parts 3138 | . 47 50 117 235 100 364 30 29 302 381 . 59 444 443 115 18 119 . 78 . 207 Protomatter Decayed 2014 | . 17 . 48 201 88 61 87 26 401 114 . . 154 276 143 121 130 94 . . 53 Game ------ Seed ReactionExperimentalBarrier Manual? 0 Play Time 07:15:49 Cumulative 34.2 hours Start 2024.05.25 @ 23:56:35 End 2024.05.27 @ 15:06:06 Sessions 4 Manual Loads 0 Difficulty Adventurer Special Mode Winter2019/RPGLIKE Game No. 8 Rogue 0 Adventurer 8 Explorer 0 Win Type - Total 1 Types 1/0/0/0/0/0/0/0/0 Lore% 29 Gallery% 31 Achievement% 29 Wizard Run 0 Options --------- Layout 0 ASCII 0 Keyboard 0 Movement Mouse Keybinds 0 Fullscreen 1 Font 18/SmallcapsGlow Map View 76x50 Zoom Use 0% Tactical HUD 1 Map Filters NONE Filters NONE Steam 1 RUN: 2114ca66-6faa-4780-9644-b53a0082dcdd